Cogmind - Beta 13 @@@ ROGUE MODE // 2024.04.24 @ 18:55:11 Player: AntinDisguise Result: Destroyed by D-53 Grenadier with Mini Grenade Launcher Performance ------------- Evolutions (0) 0 Regions Visited (4) 800 Robots Destroyed (12) 60 Value Destroyed (234) 234 Prototype IDs (0) 0 Alien Tech Used (0) 0 Bonus (120) 120 TOTAL SCORE: 1214 Bonus ------- Follower Combat Kills 120 Cogmind --------- Core Integrity 0/250 Matter 290/300 Energy 146/200 System Corruption 0% Temperature Danger (469) Movement Core (250) Ox4 Location -8/Recycling Parts ------- > --- POWER (1) -------- Subdweller Power Source > --- PROPULSION (2) --- (None) > --- UTILITY (2) ------ Small Storage Unit > --- WEAPON (2) ------- Rocket Launcher > --- INVENTORY (8) ---- Scrap Engine Beam Cannon Mining Laser Makeshift Hammer Peak State ------------ > --- POWER ------------ Subdweller Power Source > --- PROPULSION ------- Light Treads Light Treads > --- UTILITY ---------- Small Storage Unit Tractor Beam > --- WEAPON ----------- Riot Gun Subdweller Beam Cannon > --- INVENTORY -------- Scrap Engine Beam Cannon Rocket Launcher Mining Laser Flamer Flamer Makeshift Hammer [Rating: 13] Favorites ----------- Power Light Nuclear Core Engine Subdweller Power Source Power Core Light Nuclear Core Propulsion Light Treads Treads Light Treads Wheel Wheel Utility Small Storage Unit Device Seismic Detector Storage Small Storage Unit Weapon Beam Cannon Energy Gun Riot Gun Energy Cannon Beam Cannon Ballistic Gun Assault Rifle Launcher Rocket Launcher Special Weapon Flamer Build | -11 -10 -10 -10 -8 ------- Run | Yrd Mat Min Sub Rec Slots Evolved . | . . . . . Power . | . . . . . Propulsion . | . . . . . Utility . | . . . . . Weapon . | . . . . . Parts Attached 24 | 7 2 4 7 4 Power 3 | 1 . 1 1 . Engine 2 | 1 . . 1 . Core 1 | . . 1 . . Reactor . | . . . . . Propulsion 4 | 2 . 2 . . Treads 2 | . . 2 . . Leg . | . . . . . Wheel 2 | 2 . . . . Hover . | . . . . . Flight . | . . . . . Utility 3 | 2 . . . 1 Device 2 | 1 . . . 1 Storage 1 | 1 . . . . Processor . | . . . . . Hackware . | . . . . . Protection . | . . . . . Artifact . | . . . . . Weapon 14 | 2 2 1 6 3 Energy Gun 2 | 1 . . 1 . Energy Cannon 4 | . 2 . 2 . Ballistic Gun 1 | 1 . . . . Ballistic Cannon . | . . . . . Launcher 2 | . . . 1 1 Special Weapon 5 | . . 1 2 2 Impact Weapon . | . . . . . Slashing Weapon . | . . . . . Piercing Weapon . | . . . . . Special Melee Weapon . | . . . . . Unidentified Prototypes . | . . . . . Parts Lost 12 | . . 2 3 7 Power 1 | . . . 1 . Propulsion 4 | . . 2 . 2 Utility 2 | . . . 1 1 Weapon 5 | . . . 1 4 Highest Loss Streak 7 | . . 2 3 7 To Critical Strikes . | . . . . . Average Slot Usage (%) 93 | . 100 97 92 91 Engine 4 | . 14 2 2 14 Core 8 | . . 11 9 . Treads 21 | . . 8 28 26 Wheel 5 | . 28 17 . . Device 11 | . 14 14 10 8 Storage 14 | . 14 14 14 14 Energy Gun 2 | . 7 . . 12 Energy Cannon 14 | . 14 26 7 11 Special Weapon 9 | . . 1 16 1 Naked Turns . | . . . . . Heaviest Build 22 | 14 17 17 22 22 Greatest Support 40 | 20 20 40 40 40 Greatest Overweight (x) 5 | . . 5 . . Average Overweight (x) . | . . . . . Largest Inventory Capacity 8 | 8 8 8 8 8 Average Capacity 7 | 7 8 8 8 8 Most Carried 8 | 5 4 5 8 8 Average Carried 5 | 2 2 3 7 7 Final Capacity 8 | 8 8 8 8 8 Final Carried 7 | 2 2 2 7 5 Class Distribution -------------------- 100% | Mutant Dominant Class ---------------- Mutant | -10/Materials Mutant | -10/Mines Mutant | -10/Subcaves Mutant | -8/Recycling Resources | -11 -10 -10 -10 -8 ----------- Run | Yrd Mat Min Sub Rec Matter Collected 499 | 312 . 79 55 53 Remotely 10 | . . . . 10 Salvage Created 514 | 92 . 200 73 149 Parts 18 | 4 . 7 3 4 Haulers Intercepted . | . . . . . Recyclers Shooed . | . . . . . Parts Field Recycled . | . . . . . Retrieved Matter . | . . . . . Parts Self-Destructed 2 | . . . 2 . Prevented . | . . . . . Kills | -11 -10 -10 -10 -8 ------- Run | Yrd Mat Min Sub Rec Combat Hostiles Destroyed 8 | . . 2 5 1 Cannons 6 | . . 2 3 1 Classes Destroyed 6 | 2 . 1 2 1 Tunneler 2 | 1 . 1 . . Recycler 2 | 1 . 1 . . Swarmer 4 | . . . 4 . Grunt 2 | . . 2 . . Duelist 1 | . . . . 1 Subdweller 1 | . . . 1 . Best Kill Streak 3 | 1 . 3 2 1 Combat Bots Only 2 | . . 2 2 1 Max Kills in Single Turn 1 | 1 . 1 1 1 Gunslinging . | . . . . . Exploded . | . . . . . Melee . | . . . . . Uniques/NPCs Destroyed . | . . . . . Combat | -11 -10 -10 -10 -8 -------- Run | Yrd Mat Min Sub Rec Hostile Shots Fired 91 | . . 27 52 12 Missed 19 | . . 2 16 1 Damage Taken 1049 | . . 338 277 434 Core 257 | . . 41 49 167 Absorbed by Shields . | . . . . . Core Remaining (%) 100 | 100 . . . . Volleys Fired 69 | 14 . 22 22 11 Largest 2 | 2 . 2 2 2 Hottest 200 | 60 . 120 200 200 Shots Fired 115 | 22 . 35 39 19 Gun 29 | 22 . . . 7 Cannon 57 | . . 30 21 6 Launcher 3 | . . . 3 . Special 26 | . . 5 15 6 Kinetic 14 | 14 . . . . Thermal 91 | 8 . 35 36 12 Explosive 3 | . . . 3 . Electromagnetic 7 | . . . . 7 Robot Hit Streak 6 | 5 . 6 4 5 Robot Miss Streak 5 | 3 . 2 5 4 Penetration Max . | . . . . . Secondary Targets . | . . . . . Shots Hit Robots 61 | 14 . 21 12 14 Core Hits 17 | 3 . 6 3 5 Critical Kills 1 | . . . 1 . Critical Parts Destroyed . | . . . . . Critical Strikes 3 | . . . 3 . Burn 2 | . . . 2 . Meltdown 1 | . . . 1 . Melee Attacks . | . . . . . Impact . | . . . . . Slashing . | . . . . . Piercing . | . . . . . Sneak Attacks . | . . . . . Combat Hostiles . | . . . . . Follow-up Attacks . | . . . . . Damage Inflicted 1041 | 164 . 416 207 254 Guns 252 | 164 . . . 88 Cannons 668 | . . 416 141 111 Explosions . | . . . . . Melee . | . . . . . Ramming . | . . . . . Kinetic 110 | 110 . . . . Thermal 843 | 54 . 416 207 166 Explosive . | . . . . . Electromagnetic 88 | . . . . 88 Impact . | . . . . . Slashing . | . . . . . Piercing . | . . . . . Highest Corruption . | . . . . . Average Corruption . | . . . . . Corruption Purged . | . . . . . Corruption Blocked . | . . . . . Overload Shots . | . . . . . Overflow Damage 14 | . . . 9 5 Projectiles 14 | . . . 9 5 Explosions . | . . . . . Melee . | . . . . . Knockbacks . | . . . . . Impact . | . . . . . Kinetic . | . . . . . Secondary . | . . . . . Self-Inflicted Damage . | . . . . . Shots . | . . . . . Rammed . | . . . . . Targets Rammed . | . . . . . Kicked . | . . . . . Crushed . | . . . . . Highest Temperature 684 | . . 684 77 494 Average Temperature 170 | . . 211 28 226 Received Heat Transfer 216 | . . 204 12 . Effects 16 | . . 13 . 3 Shutdowns 4 | . . 2 . 2 Energy Bleed 5 | . . 4 . 1 Interference 5 | . . 5 . . Matter Decay 1 | . . 1 . . Damage (minor) 1 | . . 1 . . Siege Activations . | . . . . . Robots Corrupted . | . . . . . Combat Hostiles . | . . . . . Parts Fried . | . . . . . Impact Corruptions . | . . . . . Robots Melted 2 | . . . 2 . Combat Hostiles 2 | . . . 2 . Parts Melted 4 | . . 1 3 . Heat Transferred 2583 | 125 . 888 1022 548 Parts Sabotaged . | . . . . . Parts Stolen . | . . . . . Parts Stripped . | . . . . . Power Chain Reactions . | . . . . . Alert | -11 -10 -10 -10 -8 ------- Run | Yrd Mat Min Sub Rec Peak Influence 333 | 10 6 182 . 333 Initial 312 | . 6 1 . 312 Average 131 | 5 6 92 . 317 Maximum Alert Level 1 | . . . . 1 Low Security (%) 73 | 100 100 100 . . Level 1 26 | . . . . 100 Level 2 . | . . . . . Level 3 . | . . . . . Level 4 . | . . . . . Level 5 . | . . . . . High Security . | . . . . . Max Security . | . . . . . Squads Dispatched . | . . . . . Investigation . | . . . . . Extermination . | . . . . . Reinforcement . | . . . . . Assault . | . . . . . Garrison . | . . . . . Intercept . | . . . . . Searches Triggered . | . . . . . Construction Impeded . | . . . . . Haulers Reinforced . | . . . . . Active Scanning Responses . | . . . . . Cargo Convoy Interrupts . | . . . . . Stealth | -11 -10 -10 -10 -8 --------- Run | Yrd Mat Min Sub Rec Distress Signals . | . . . . . Communications Jammed . | . . . . . Distress Signals . | . . . . . Times Spotted 35 | . . 11 22 2 Peak Tracking Total 5 | . . 5 4 2 Tactical Retreats 5 | . . 1 4 . Traps | -11 -10 -10 -10 -8 ------- Run | Yrd Mat Min Sub Rec Traps Triggered . | . . . . . Indirectly . | . . . . . Trap Hack Attempts . | . . . . . Triggered . | . . . . . Disarmed . | . . . . . Reprogrammed . | . . . . . Reused . | . . . . . Traps Extracted . | . . . . . Installed . | . . . . . Triggered . | . . . . . Machines | -11 -10 -10 -10 -8 ---------- Run | Yrd Mat Min Sub Rec Machines Disabled . | . . . . . Max in Single Turn . | . . . . . Machines Repaired . | . . . . . Machines Dismantled . | . . . . . Machines Sabotaged . | . . . . . Overloaded Fab Kills . | . . . . . Hacking | -11 -10 -10 -10 -8 --------- Run | Yrd Mat Min Sub Rec Machines Accessed 4 | . 1 . . 3 Terminals 3 | . 1 . . 2 Fabricators . | . . . . . Repair Stations . | . . . . . Recycling Units 1 | . . . . 1 Scanalyzers . | . . . . . Garrison Access . | . . . . . Total Hacks 10 | . 2 . . 8 Successful 4 | . 1 . . 3 Failed 6 | . 1 . . 5 Catastrophic . | . . . . . Database Lockouts . | . . . . . Manual . | . . . . . Terminals 6 | . 2 . . 4 Fabricators . | . . . . . Repair Stations . | . . . . . Recycling Units 4 | . . . . 4 Scanalyzers . | . . . . . Garrison Access . | . . . . . Terminal Hacks 4 | . 1 . . 3 Emergency Access Points 1 | . . . . 1 Zone Layout 3 | . 1 . . 2 Fabricator Hacks . | . . . . . Repair Station Hacks . | . . . . . Recycling Unit Hacks . | . . . . . Scanalyzer . | . . . . . Garrison Access Hacks . | . . . . . Unauthorized Hacks . | . . . . . Terminals . | . . . . . Fabricators . | . . . . . Repair Stations . | . . . . . Recycling Units . | . . . . . Scanalyzers . | . . . . . Garrison Access . | . . . . . Data Cores Recovered . | . . . . . Used . | . . . . . Hacking Detections 2 | . . . . 2 Full Trace Events . | . . . . . Feedback Events . | . . . . . Feedback Blocked . | . . . . . Robot Schematics Acquired . | . . . . . Robots Built . | . . . . . Authchips . | . . . . . Time . | . . . . . Total Robot Build Rating . | . . . . . Part Schematics Acquired . | . . . . . Parts Built . | . . . . . Authchips . | . . . . . Time . | . . . . . Total Part Build Rating . | . . . . . Parts Repaired . | . . . . . Time . | . . . . . Parts Recycled . | . . . . . Recycled Matter . | . . . . . Retrieved Matter . | . . . . . Retrieved Components . | . . . . . Parts Scanalyzed . | . . . . . Part Schematics Acquired . | . . . . . Parts Damaged . | . . . . . Bothacking | -11 -10 -10 -10 -8 ------------ Run | Yrd Mat Min Sub Rec Used RIF Installer . | . . . . . Robots Hacked . | . . . . . Non-combat . | . . . . . Combat . | . . . . . Robot Hacks Applied . | . . . . . Relay Couplers Released . | . . . . . Fabnet Peak Effective % . | . . . . . Robots Rewired . | . . . . . Allies Hacked . | . . . . . Hacks Repelled . | . . . . . Allies | -11 -10 -10 -10 -8 -------- Run | Yrd Mat Min Sub Rec Total Allies 1 | . . 1 . . Largest Group 1 | . . 1 . . Highest-Rated Group 31 | . . 31 . . Highest-Rated Ally 31 | . . 31 . . Total Orders . | . . . . . Ally Attacks 16 | . . 16 . . Total Damage 165 | . . 165 . . Kills 4 | . . 4 . . Allies Corrupted . | . . . . . Allies Melted 1 | . . 1 . . Intel | -11 -10 -10 -10 -8 ------- Run | Yrd Mat Min Sub Rec Robot Analysis Total . | . . . . . Derelict Logs Recovered 1 | . . . 1 . Drone Launches . | . . . . . Drone Recoveries . | . . . . . Exploration | -11 -10 -10 -10 -8 ------------- Run | Yrd Mat Min Sub Rec Turns Passed 1319 | 130 42 339 620 188 Spaces Moved 771 | 93 47 219 321 91 Core 14 | 10 . 4 . . Treads 448 | . . 36 321 91 Legs . | . . . . . Wheels 309 | 83 47 179 . . Hover . | . . . . . Flight . | . . . . . Fastest Speed 50 | 50 80 80 160 160 Average Speed 127 | 76 80 97 160 160 Slowest Speed 300 | 80 80 300 160 160 Overloaded Moves . | . . . . . Propulsion Burnouts . | . . . . . Robots Hopped . | . . . . . Cave-ins Triggered . | . . . . . Exploration Rate (%) 17 | 7 11 39 10 18 Regions Visited 4 Branch Regions 3 Pre-discovered Areas . | . . . . . Known Exits Taken . | . . . . . Unknown Exits Taken 4 | 1 1 1 1 . Scrap Searched 8 | . . 1 7 . Spaces Dug 26 | . . 3 23 . Terrain Destroyed 32 | . . 4 26 2 Melee . | . . . . . Projectile 12 | . . 4 6 2 AOE 20 | . . . 20 . Terrain Rammed . | . . . . . Walls Destroyed . | . . . . . Machines Disabled . | . . . . . Actions | -11 -10 -10 -10 -8 --------- Run | Yrd Mat Min Sub Rec Total 959 | 129 52 300 370 108 Wait 69 | 7 . 50 12 . Move 767 | 92 46 218 320 91 Hop . | . . . . . Pick Up 23 | 9 2 4 7 1 Fast Attach 2 | . . . 1 1 Attach 17 | 7 2 2 3 3 Detach 1 | . . . 1 . Swap 5 | . . 2 3 . Drop 6 | . 2 2 1 1 Fire 69 | 14 . 22 22 11 Melee . | . . . . . Ram . | . . . . . Kick . | . . . . . Crush . | . . . . . Escape Stasis . | . . . . . Rewire . | . . . . . Trap . | . . . . . Miscellaneous . | . . . . . Route ------- -11/Scrapyard -10/Materials -10/Mines -10/Subcaves -8/Recycling History --------- Turn | Location | Event 19 | -11/Scrapyard | Discovered new exit (range 15) 131 | -11/Scrapyard | Entered Materials 160 | -10/Materials | Discovered new exit (range 15) 173 | -10/Materials | Entered Mines 176 | -10/Mines | Received a Mining Laser from a helpful Derelict 317 | -10/Mines | Build established: Mutant 321 | -10/Mines | Received a Rocket Launcher from a helpful Derelict 445 | -10/Mines | Assembled infested the area 450 | -10/Mines | Assisted by a Guerilla fighting off Assembled 506 | -10/Mines | Discovered new exit (range 2) 512 | -10/Mines | Entered Subcaves 669 | -10/Subcaves | Shifting Twisted Machinery released Mak. Light Armor Plating 942 | -10/Subcaves | Discovered new exit (range 12) 1012 | -10/Subcaves | Lost 3 parts (1p1u1w) 1132 | -10/Subcaves | Entered Recycling 1149 | -8/Recycling | Found Scrap Engine 1292 | -8/Recycling | Core integrity fell below 50% 1319 | -8/Recycling | Core integrity fell below 20% 1320 | -8/Recycling | Destroyed by D-53 Grenadier with Mini Grenade Launcher Last Messages --------------- Riot Gun destroyed. Tractor Beam destroyed. Destroyed Imp. Aluminum Leg. R-06 Scavenger collects Wheel. L-31 Rogue destroyed. R-06 Scavenger collects Wheel. Power failure, Sub. Power Source shutdown. Flamer destroyed. Lgt. Treads destroyed. R-06 Scavenger destroyed. G-47 Trooper destroyed. Overheating: Energy bleed (-39). Lgt. Treads destroyed. P-60 Hacker destroyed. Power failure, Sub. Power Source shutdown. U-05 Engineer lays Concrete. Flamer destroyed. R-06 Scavenger destroyed. R-06 Scavenger collects Tractor Beam. U-05 Engineer lays Concrete. Map ----- +----------------------------------------------------+ | ??????????????????????####?# ## " #???? | | ?????????????????????? #??# ## #???? | | ?????????????????????? #??# ###############???? | | ??????????????????????" #??# #?????????????????? | | ??????????????????????" #??# #?????????????????? | | ??????????????????????" #??# #?????????????????? | | ?????????????????? #?## ##????????????????? | | ??????????????????###+##### #????????????????? | | ?????????????????? ################?? | | ?????????????????? ## #?? | | ?????????????????? ### "" #?? | | ??????????????????###+##### #?# "T #?? | | ?????????????????? #?## #?# "" #?? | | ?????????????????? #??# ### #?? | | ?????????????????? #### ""# """ #?? | | ?????????????????? ##"" Y"# """"" #?? | | ?????????????????+########"Y ""# """"" #?? | | ??????????????????#??????#"" ### """"" #?? | | ??????????????###+########## #?# """ #?? | | ??????????????# % a# #?# #?? | | ??????????????# l !# ### #?? | | ??????????????# Y #T#####+#########? | | ??????????????#a Y % h #? | | ??????????????# t % #? | | ??????????????# != u r #? | | ?????????? + = @ ###"Y"######+####### | | ??????????????# k u % #?#"""# | | ??????????????# ktr d % ##?##### | | ??????????????# t !! % #??????# | | ??????????????# ! ##??????# | | ??????????????# d ##???????# | | ??????????????#####;########????????############## | | ??????????????????#??????????????????????????????? | | ?????????????????????????????????????????????????? | | | | | | | | | | | | | | | | | | | | | | | | | | | | | | | | | +----------------------------------------------------+ Best States ------------- Heat Dissipation 25 Energy Generation 15 Energy Capacity 250 Matter Stores 300 Matter Capacity 300 Sight Range 16 Terrain Scan Density 10 Evasion (%) 50 Recoil Reduction 2 Item Schematics ----------------- None Robot Schematics ------------------ None Fabricated ------------ Nothing Alien Tech Used ----------------- None Achievements -------------- None Challenges ------------ None Game ------ Seed PointyAdvancedSlayer Manual? 0 Play Time 00:13:18 Cumulative 25.1 hours Start 2024.04.24 @ 18:43:39 End 2024.04.24 @ 18:55:11 Sessions 1 Manual Loads 0 Difficulty Rogue Special Mode None Game No. 66 Rogue 64 Adventurer 2 Explorer 0 Win Type - Total 0 Types 0/0/0/0/0/0/0/0/0 Lore% 22 Gallery% 30 Achievement% 23 Wizard Run 0 Options --------- Layout 1 ASCII 0 Keyboard 0 Movement Mouse Keybinds 0 Fullscreen 1 Font 16/SmallcapsGlow Map View 27x19 Zoom Use 92% Tactical HUD 0 Map Filters NONE Filters NONE Steam 1 RUN: f8a00a7a-db84-4d76-9521-190c0366c84c